Cogmind - Beta 9.6 @@@ ROGUE MODE // 2020.04.19 @ 17:42:55 Player: cptwinky Result: Core destroyed Performance ------------- Evolutions (6) 3000 Regions Visited (24) 4800 Robots Destroyed (253) 1265 Value Destroyed (10666) 10666 Prototype IDs (34) 680 Alien Tech Used (1) 200 Bonus (3834) 3834 TOTAL SCORE: 24445 Bonus ------- High Alert Combat Kills 871 Follower Combat Kills 1101 Met Data Miner 300 Met Warlord at Base 500 MAIN.C Attacked Warlord 500 Warlord Defense Kill 1752 Friendly Fire -1190 Cogmind --------- Core Integrity 0/1150 Matter 195/300 Energy 700/700 System Corruption 1% Temperature Cool (535) Movement Treading (155) Location -4/Factory Parts ------- > --- POWER (2) -------- Vortex Chain Reactor > --- PROPULSION (5) --- Heavy Treads Advanced Medium Treads Improved Heavy Treads > --- UTILITY (10) ----- Large Storage Unit Enhanced Optical Array Experimental Signal Interpreter Experimental Terrain Scan Processor Advanced Core Analyzer Improved Transmission Jammer Improved Medium Armor Plating Advanced Focal Shield Hacking Suite Hacking Suite > --- WEAPON (3) ------- Dispersion Rifle Heavy Phase Cannon Railgun > --- INVENTORY (10) --- Advanced Heavy Siege Treads Advanced Heavy Siege Treads Experimental Sensor Array Advanced Thermal Shield Improved Force Field Heavy Phase Cannon Gamma Bomb Array Peak State ------------ > --- POWER ------------ Vortex Chain Reactor > --- PROPULSION ------- Heavy Treads Heavy Treads Impulse Thruster > --- UTILITY ---------- Advanced Heat Sink Enhanced Optical Array Experimental Sensor Array Experimental Signal Interpreter Experimental Terrain Scan Processor Advanced Target Analyzer Advanced Core Analyzer Experimental Armor Integrity Analyzer Improved Maneuvering Thrusters Hacking Suite > --- WEAPON ----------- Railgun Hypervelocity Railgun Improved Remote Datajack > --- INVENTORY -------- Vortex Catalyst Activator [Rating: 133] Favorites ----------- Power Fission Core Engine Angular Momentum Engine Power Core Fission Core Reactor Vortex Chain Reactor Propulsion Compact Wheel Treads Light Treads Wheel Compact Wheel Hover Unit Antigrav System Flight Unit Impulse Thruster Utility High-capacity Storage Unit Device Experimental Sensor Array Storage High-capacity Storage Unit Processor Enhanced Optical Array Hackware Hacking Suite Protection Layered Medium Armor Plating Weapon Gauss Rifle Energy Gun Shock Rifle Energy Cannon EM Pulse Cannon Ballistic Gun Gauss Rifle Ballistic Cannon Magnetic Acceleration Cannon Launcher Vortex Catalyst Activator Special Weapon Improved Remote Datajack Impact Weapon Heavy Flail Slashing Weapon Chainsword Special Melee Weapon Improved Datajack Build | -11 -10 -10 -9 -9 -9 -8 -8 -7 -7 -7 -6 -6 -6 -6 -6 -5 -5 -5 -5 -5 -4 -4 -4 -4 ------- Run | Scr Mat Min Mat Min Exi Min Mat Fac Low Dat Pro Fac Low Low Zio Pro Fac Upp Upp War Pro Fac Was Fac Slots Evolved 12 | . . . 2 . . . 2 2 . . . 2 . . . . 2 . . . . 2 . . Power 1 | . . . . . . . . . . . . 1 . . . . . . . . . . . . Propulsion 3 | . . . . . . . 1 . . . . 1 . . . . 1 . . . . . . . Utility 8 | . . . 2 . . . 1 2 . . . . . . . . 1 . . . . 2 . . Weapon . | . . . . . . . . . . . . . . . . . . . . . . . . . Parts Attached 358 | 6 8 8 5 1 . 6 37 13 2 1 24 46 6 12 10 8 45 6 5 12 3 58 10 26 Power 30 | 1 . 1 . . . 2 2 . . . 2 8 1 . . 1 3 . . . . 9 . . Engine 13 | 1 . 1 . . . 2 2 . . . 1 4 1 . . . . . . . . 1 . . Core 14 | . . . . . . . . . . . 1 4 . . . 1 3 . . . . 5 . . Reactor 3 | . . . . . . . . . . . . . . . . . . . . . . 3 . . Propulsion 59 | 2 1 1 1 . . . 9 1 . . 2 9 . 1 1 . 9 . 1 3 . 13 2 3 Treads 30 | 1 1 . . . . . 7 . . . 1 5 . 1 . . 5 . 1 3 . . 2 3 Leg . | . . . . . . . . . . . . . . . . . . . . . . . . . Wheel 16 | 1 . 1 1 . . . 2 1 . . 1 4 . . 1 . 4 . . . . . . . Hover 4 | . . . . . . . . . . . . . . . . . . . . . . 4 . . Flight 9 | . . . . . . . . . . . . . . . . . . . . . . 9 . . Utility 144 | 1 4 . 2 1 . . 8 7 2 1 8 19 4 6 6 5 18 3 3 6 1 20 5 14 Device 80 | . . . 1 . . . 4 3 2 1 7 8 4 6 3 5 5 2 3 2 1 14 1 8 Storage 13 | 1 2 . 1 . . . 1 . . . . 1 . . 2 . 2 . . 1 . 1 . 1 Processor 12 | . . . . . . . 1 2 . . . 1 . . 1 . 3 . . . . 1 3 . Hackware 7 | . . . . . . . . . . . . 2 . . . . 1 . . 1 . 1 . 2 Protection 32 | . 2 . . 1 . . 2 2 . . 1 7 . . . . 7 1 . 2 . 3 1 3 Artifact . | . . . . . . . . . . . . . . . . . . . . . . . . . Weapon 125 | 2 3 6 2 . . 4 18 5 . . 12 10 1 5 3 2 15 3 1 3 2 16 3 9 Energy Gun 21 | 2 1 4 1 . . 1 8 . . . . . . 1 . . . . . . . 2 . 1 Energy Cannon 35 | . 1 . . . . . 1 . . . . 5 . 3 3 2 6 2 . 2 1 5 . 4 Ballistic Gun 25 | . . . . . . . 5 3 . . 6 3 . . . . 1 . . . . 3 3 1 Ballistic Cannon 8 | . . . . . . 2 . . . . . . . . . . 2 . 1 1 . 2 . . Launcher 21 | . 1 2 1 . . 1 4 . . . 3 . 1 . . . 2 1 . . 1 1 . 3 Special Weapon 1 | . . . . . . . . . . . . . . . . . . . . . . 1 . . Impact Weapon 5 | . . . . . . . . 2 . . 2 1 . . . . . . . . . . . . Slashing Weapon 5 | . . . . . . . . . . . . 1 . 1 . . 3 . . . . . . . Piercing Weapon . | . . . . . . . . . . . . . . . . . . . . . . . . . Special Melee Weapon 4 | . . . . . . . . . . . 1 . . . . . 1 . . . . 2 . . Unidentified Prototypes 13 | . . . . . . . . . . . 1 1 . . . . 1 1 . 5 . 1 1 2 Parts Lost 60 | . . 1 . 1 . 2 6 . . . 4 6 . . . 1 8 . . 1 . 26 . 4 Power 7 | . . . . . . . 1 . . . 1 1 . . . 1 . . . . . 3 . . Propulsion 17 | . . 1 . . . . . . . . 2 2 . . . . 4 . . . . 7 . 1 Utility 20 | . . . . 1 . . 3 . . . 1 2 . . . . 3 . . 1 . 7 . 2 Weapon 16 | . . . . . . 2 2 . . . . 1 . . . . 1 . . . . 9 . 1 Highest Loss Streak 11 | . . 1 . 1 . 1 3 . . . 2 6 . . . 1 2 . . 1 . 11 . 2 Average Slot Usage (%) 95 | . 91 99 99 100 100 100 99 99 100 100 99 96 100 100 99 99 96 93 93 93 94 80 80 83 Engine 4 | . 14 14 11 11 11 11 8 7 7 7 1 5 5 6 6 1 . . . . . . . . Core 5 | . . . . . . . . . . . 5 6 7 6 6 11 10 11 11 11 11 7 . . Treads 12 | . 13 14 11 11 11 11 17 12 7 7 7 12 13 13 13 13 15 11 11 11 16 10 4 11 Wheel 10 | . 14 14 11 11 11 11 9 9 15 15 14 10 13 13 12 13 8 11 11 11 11 5 . . Device 10 | . . . 10 11 11 11 10 13 15 15 14 7 11 13 12 13 4 10 10 9 11 9 13 11 Storage 13 | . 14 14 22 22 22 22 18 15 15 15 15 13 13 13 13 13 11 11 11 11 11 12 . 4 Processor 12 | . . . . . . . 7 15 15 15 15 13 13 13 13 13 14 16 16 16 16 15 27 23 Hackware 2 | . . . . . . . . . . . . 4 1 . . . 5 5 5 5 5 3 5 10 Protection 5 | . 7 14 11 11 11 11 9 7 7 7 7 5 6 6 6 6 7 . . 1 . 2 1 . Energy Gun 3 | . 19 26 21 22 22 9 6 3 . . . . . 4 . . . . . . . . . . Energy Cannon 5 | . 7 . . . . . . 3 . . . 5 13 6 12 13 4 7 11 10 4 4 . 7 Ballistic Gun 3 | . . . . . . . 10 6 15 15 12 6 . . . . 2 . . . . . 7 5 Ballistic Cannon 1 | . . . . . . 12 . . . . . . . . . . 2 5 5 5 5 3 . . Naked Turns . | . . . . . . . . . . . . . . . . . . . . . . . . . Heaviest Build 184 | 10 43 46 79 79 77 83 105 108 108 107 120 110 115 115 117 116 120 123 123 143 143 184 57 87 Greatest Support 175 | 10 10 10 16 16 16 20 40 40 26 26 26 32 28 28 32 32 126 32 32 32 32 83 140 175 Greatest Overweight (x) 22 | . 4 4 7 4 4 5 6 4 4 4 8 9 4 4 4 3 7 3 3 4 4 22 . . Average Overweight (x) 3 | . 1 3 4 4 4 4 5 2 3 3 4 5 3 3 3 3 4 3 3 3 4 2 . . Largest Inventory Capacity 28 | 6 12 12 20 20 20 20 20 20 20 20 20 20 20 20 20 20 20 20 20 20 20 28 4 10 Average Capacity 18 | 5 8 12 19 20 20 20 20 20 20 20 20 20 20 20 20 20 20 20 20 20 20 23 4 9 Most Carried 28 | 4 10 12 20 20 20 20 20 20 20 20 20 20 20 20 20 20 20 20 20 20 20 28 4 10 Average Carried 18 | 2 6 11 17 19 19 19 18 17 19 20 19 19 19 19 19 18 18 19 19 19 20 20 2 8 Final Capacity 20 | 6 12 12 20 20 20 20 20 20 20 20 20 20 20 20 20 20 20 20 20 20 20 4 4 10 Final Carried 20 | 4 10 12 20 19 20 19 18 20 20 20 18 20 20 20 20 18 20 20 19 20 20 2 4 9 Class Distribution -------------------- 30% | Hauler-Mutant 22% | Hauler-Skirmisher 19% | Scavenger-Skirmisher 6% | Scavenger-Mutant 3% | Hacker-Skirmisher 3% | Mutant 3% | Trapper-Skirmisher Dominant Class ---------------- Mutant | -10/Materials Mutant | -10/Mines Hauler-Mutant | -9/Materials Hauler-Mutant | -9/Mines Hauler-Mutant | -9/Exiles Hauler-Mutant | -8/Mines Hauler-Mutant | -8/Materials Hauler-Skirmisher | -7/Factory Scavenger-Skirmisher | -7/Lower Caves Scavenger-Skirmisher | -7/Data Miner Hauler-Skirmisher | -6/Proximity Caves Hauler-Skirmisher | -6/Factory Hauler-Skirmisher | -6/Lower Caves Trapper-Skirmisher | -6/Lower Caves Hauler-Skirmisher | -6/Zion Hauler-Skirmisher | -5/Proximity Caves Hauler-Mutant | -5/Factory Scavenger-Skirmisher | -5/Upper Caves Scavenger-Skirmisher | -5/Upper Caves Scavenger-Skirmisher | -5/Warlord Scavenger-Mutant | -4/Proximity Caves Scavenger-Mutant | -4/Factory Scout | -4/Waste Hacker-Skirmisher | -4/Factory Resources | -11 -10 -10 -9 -9 -9 -8 -8 -7 -7 -7 -6 -6 -6 -6 -6 -5 -5 -5 -5 -5 -4 -4 -4 -4 ----------- Run | Scr Mat Min Mat Min Exi Min Mat Fac Low Dat Pro Fac Low Low Zio Pro Fac Upp Upp War Pro Fac Was Fac Matter Collected 7596 | 260 67 179 261 10 . 68 733 70 180 . 457 581 164 130 70 110 1013 185 105 955 80 1164 297 457 Remotely . | . . . . . . . . . . . . . . . . . . . . . . . . . Salvage Created 12570 | 53 215 27 397 148 . 336 2160 110 64 . 378 777 263 468 . 310 1529 258 49 611 116 960 1750 1591 Parts 533 | 1 10 8 28 6 . 17 130 7 1 . 15 44 4 15 . 14 61 2 . 18 . 55 32 65 Haulers Intercepted 3 | . . . . . . . 2 . . . . 1 . . . . . . . . . . . . Recyclers Shooed 10 | . . . 1 . . . 4 . . . . 2 . . . . 1 . . . . . . 2 Parts Field Recycled . | . . . . . . . . . . . . . . . . . . . . . . . . . Retrieved Matter . | . . . . . . . . . . . . . . . . . . . . . . . . . Parts Self-Destructed 95 | . . . . . . . . . . . 27 . 1 8 . 10 . 1 4 43 1 . . . Prevented 39 | . . . . . . . . . . . 5 . 1 7 . 5 . . 7 12 2 . . . Kills | -11 -10 -10 -9 -9 -9 -8 -8 -7 -7 -7 -6 -6 -6 -6 -6 -5 -5 -5 -5 -5 -4 -4 -4 -4 ------- Run | Scr Mat Min Mat Min Exi Min Mat Fac Low Dat Pro Fac Low Low Zio Pro Fac Upp Upp War Pro Fac Was Fac Combat Hostiles Destroyed 204 | . 6 6 8 2 . 9 39 1 . . 9 9 . 8 . 8 22 3 1 14 4 19 6 30 Melee 7 | . . . . . . . . . . . . 2 . . . . 5 . . . . . . . Guns 75 | . 3 1 4 1 . 5 27 1 . . 6 4 . 2 . . 6 . . . . . 6 9 Cannons 59 | . 1 . . . . . . . . . . 3 . 4 . 4 5 . 1 14 2 16 . 9 AOE 51 | . 2 5 4 1 . 4 9 . . . 3 . . . . 2 4 3 . . 2 2 . 10 Classes Destroyed 21 | 1 1 2 2 . . 1 6 1 . . 1 . 1 1 . . . . . 3 . . 1 . Worker 5 | . . 1 . . . . . . . . . 1 . . . . 1 . . . . 1 . 1 Builder 12 | . . . 2 . . . 2 . . . . . . . . . 1 . . . . 6 . 1 Tunneler 1 | . . . . . . . 1 . . . . . . . . . . . . . . . . . Hauler 3 | . . . . . . . 2 . . . . 1 . . . . . . . . . . . . Recycler 10 | 1 . . 2 1 . . 2 . . . . 1 . . . . 2 . . . . 1 . . Minesweeper 1 | . . . . . . . . . . . . . . 1 . . . . . . . . . . Operator 5 | . . . . . . . 2 1 . . . . . . . . . . . . . 1 . 1 Watcher 8 | . . . . . . . 2 1 . . . 1 . . . . 3 . . . . . . 1 Swarmer 44 | . . 6 4 . . 3 12 . . . 3 . . . . 3 3 . . . . 5 . 5 Saboteur 1 | . . . . . . . . . . . 1 . . . . . . . . . . . . . Grunt 83 | . 6 . 2 2 . 5 16 . . . 3 1 . 6 . 2 10 3 1 5 4 4 . 13 Brawler 6 | . . . . . . . 1 . . . 1 . . 1 . . 1 . . 2 . . . . Duelist 5 | . . . . . . 1 . . . . 1 . . . . 1 . . . 1 . 1 . . Protector 3 | . . . . . . . . . . . . . . . . . . . . 3 . . . . Sentry 19 | . . . 2 . . . 8 . . . . 1 . . . . 4 . . . . 3 . 1 Specialist 2 | . . . . . . . . . . . . . . . . . . . . 2 . . . . Hunter 14 | . . . . . . . 2 . . . . 3 . . . . . . . . . 4 . 5 Programmer 20 | . . . . . . . . 1 . . . 4 . 1 . 2 4 . . . . 2 . 6 Compactor 6 | . . . . . . . . . . . . . . . . . . . . . . . 6 . Executioner 1 | . . . . . . . . . . . . . . . . . . . . 1 . . . . Packrat 2 | . . . . . . . . . 1 . . . 1 . . . . . . . . . . . Tinkerer 1 | . . . . . . . . . . . . . 1 . . . . . . . . . . . Best Kill Streak 10 | 1 2 4 10 3 . 3 9 1 . . 3 3 . 4 . 3 4 3 1 7 4 9 6 8 Combat Bots Only 7 | . 2 3 4 2 . 3 7 1 . . 3 3 . 4 . 3 4 3 1 7 4 6 6 7 Max Kills in Single Turn 5 | 1 1 3 5 1 . 2 3 1 1 . 1 1 1 2 . 2 2 1 1 2 1 3 1 4 Gunslinging 1 | . . . . . . . 1 . . . . . . . . . . . . . . . . . Exploded 4 | . 1 2 4 1 . 2 3 . . . 1 . . . . 2 2 1 . . 1 1 . 4 Melee 1 | . . . . . . . . . . . . 1 . . . . 1 . . . . . . . Uniques/NPCs Destroyed . | . . . . . . . . . . . . . . . . . . . . . . . . . Combat | -11 -10 -10 -9 -9 -9 -8 -8 -7 -7 -7 -6 -6 -6 -6 -6 -5 -5 -5 -5 -5 -4 -4 -4 -4 -------- Run | Scr Mat Min Mat Min Exi Min Mat Fac Low Dat Pro Fac Low Low Zio Pro Fac Upp Upp War Pro Fac Was Fac Damage Taken 16722 | . 134 156 208 84 . 345 1667 69 . . 1067 1581 . 222 . 557 1921 20 251 508 86 5275 . 2571 Core 2017 | . 12 13 96 . . 88 176 12 . . 107 81 . 16 . . 209 . . 28 . 768 . 411 Absorbed by Shields 366 | . . . . . . . 39 30 . . 21 . . 33 . 42 120 . . . . 81 . . Reduced by Siege Mode 21 | . . . . . . . . . . . . . . . . . . . . 15 . . . 6 Core Remaining (%) 79 | 100 . 90 . . . 54 68 . . . 83 . . . . 88 . . . . 76 . . . Volleys Fired 563 | 4 17 5 15 7 . 18 94 9 6 . 33 27 8 26 . 11 68 18 7 34 9 69 16 62 Largest 3 | 2 2 2 2 2 . 2 2 2 2 . 2 2 2 2 . 2 2 2 3 3 2 2 2 3 Hottest 255 | 90 110 90 100 100 . 100 110 108 56 . 63 138 138 138 . 138 151 128 185 255 188 188 75 231 Shots Fired 1031 | 8 30 6 28 14 . 34 176 18 12 . 58 54 16 52 . 22 121 28 18 54 13 97 30 142 Gun 569 | 8 20 2 26 14 . 32 166 14 12 . 48 34 . 19 . . 52 . . . . 11 30 81 Cannon 401 | . 7 . . . . . . 4 . . . 20 16 33 . 22 64 24 18 54 9 77 . 53 Launcher 61 | . 3 4 2 . . 2 10 . . . 10 . . . . . 5 4 . . 4 9 . 8 Special . | . . . . . . . . . . . . . . . . . . . . . . . . . Kinetic 445 | . . . . . . . 85 10 12 . 48 34 . . . . 101 . 6 31 4 28 30 56 Thermal 255 | 8 27 2 . . . . . . . . . . . 38 . 10 3 24 12 8 5 40 . 78 Explosive 28 | . 3 4 2 . . 2 . . . . . . . . . . . 4 . . 4 9 . . Electromagnetic 284 | . . . 26 14 . 32 91 8 . . 10 20 16 14 . 12 17 . . . . 20 . 4 Entropic 19 | . . . . . . . . . . . . . . . . . . . . 15 . . . 4 Robot Hit Streak 20 | 5 8 4 7 12 . 6 20 4 2 . 8 11 9 9 . 8 18 14 12 19 2 9 18 9 Robot Miss Streak 5 | 1 2 2 2 4 . 2 5 2 3 . 3 2 1 1 . 1 4 1 1 5 1 4 1 3 Penetration Max 2 | . . . . . . . 1 . . . 1 . . . . . 1 . . 1 . . 1 2 Secondary Targets 10 | . . . . . . 1 6 . . . 1 . . . . . . . . . . . 2 . Max Gunslinging Chain 1 | . . . . . . 1 1 . . . 1 . . . . . . . . . . . 1 . Shots Hit Robots 709 | 6 20 1 18 8 . 24 111 9 5 . 40 51 11 39 . 16 99 13 15 34 5 64 24 96 Core Hits 448 | 2 14 7 15 4 . 15 76 4 2 . 21 25 9 15 . 13 54 13 3 21 9 43 14 69 Critical Hits 31 | . . . 1 . . . . . . . . 1 . 1 . . 4 . 1 4 1 2 11 5 Critical Kills 14 | . . . 1 . . . . . . . . . . 1 . . 1 . . 2 . 1 6 2 Critical Parts Destroyed 14 | . . . . . . . . . . . . 1 . . . . 3 . 1 1 1 1 3 3 Melee Attacks 80 | . . . . . . . . 3 . . 19 27 . 2 . . 27 . . . . 2 . . Impact 24 | . . . . . . . . 3 . . 16 5 . . . . . . . . . . . . Slashing 51 | . . . . . . . . . . . . 22 . 2 . . 27 . . . . . . . Piercing . | . . . . . . . . . . . . . . . . . . . . . . . . . Sneak Attacks 3 | . . . . . . . . . . . 3 . . . . . . . . . . . . . Combat Hostiles 2 | . . . . . . . . . . . 2 . . . . . . . . . . . . . Follow-up Attacks . | . . . . . . . . . . . . . . . . . . . . . . . . . Damage Inflicted 31823 | 69 421 417 703 247 . 681 3613 234 65 . 1019 1419 341 1353 . 938 4040 1157 460 2475 1141 5252 470 5308 Guns 8860 | 69 180 11 296 184 . 403 2605 194 65 . 702 512 . 357 . . 1063 . . . . 139 470 1610 Cannons 11166 | . 123 . . . . . . 40 . . . 448 341 628 . 562 1541 353 460 2475 150 2979 . 1066 Explosions 10823 | . 118 406 407 63 . 278 973 . . . 317 . . 368 . 376 956 804 . . 991 2134 . 2632 Melee 939 | . . . . . . . . . . . . 459 . . . . 480 . . . . . . . Ramming 35 | . . . . . . . 35 . . . . . . . . . . . . . . . . . Kinetic 9048 | . . . . . . . 1195 138 65 . 702 512 . . . . 2241 . 153 872 80 1399 470 1221 Thermal 7183 | 69 303 11 62 63 . 48 253 . . . 20 . . 726 . 424 628 353 307 178 70 1752 . 1916 Explosive 4417 | . 118 406 345 . . 230 . . . . . . . . . . . 804 . . 991 1520 . 3 Electromagnetic 6948 | . . . 296 184 . 403 2130 96 . . 297 448 341 627 . 514 691 . . . . 581 . 340 Impact . | . . . . . . . . . . . . . . . . . . . . . . . . . Slashing 939 | . . . . . . . . . . . . 459 . . . . 480 . . . . . . . Piercing . | . . . . . . . . . . . . . . . . . . . . . . . . . Entropic 3253 | . . . . . . . . . . . . . . . . . . . . 1425 . . . 1828 Highest Corruption 11 | . . . . . . . 1 . . . . 11 11 . . 2 8 8 8 10 . . . 1 Average Corruption 5 | . . . . . . . 1 . . . . 7 5 . . 1 7 8 8 9 . . . 1 Corruption Purged 11 | . . . . . . . . . . . . . 11 . . . . . . . . . . . Effects 167 | . . . . . . . 4 . . . . 24 42 . . 5 47 30 13 1 . . . 1 Message Errors 33 | . . . . . . . 2 . . . . 4 5 . . 1 8 9 3 . . . . 1 Matter Fused 35 | . . . . . . . . . . . . 7 8 . . . 11 6 2 1 . . . . Heat Flow Errors 23 | . . . . . . . . . . . . 3 9 . . . 5 5 1 . . . . . Energy Discharges 23 | . . . . . . . 2 . . . . 2 8 . . 2 6 1 2 . . . . . Data Loss (minor) 23 | . . . . . . . . . . . . 1 8 . . 1 7 4 2 . . . . . Data Loss (major) 8 | . . . . . . . . . . . . 1 2 . . . 3 . 2 . . . . . Misfires 5 | . . . . . . . . . . . . 1 . . . . 3 1 . . . . . . Misdirections 2 | . . . . . . . . . . . . 1 1 . . . . . . . . . . . Targeting Errors 14 | . . . . . . . . . . . . 4 1 . . 1 3 4 1 . . . . . Weapon Failures 1 | . . . . . . . . . . . . . . . . . 1 . . . . . . . Overload Shots . | . . . . . . . . . . . . . . . . . . . . . . . . . Overflow Damage 1375 | . . 10 29 6 . 26 89 5 . . . . 31 56 . 59 64 153 54 73 83 537 . 100 Projectiles 604 | . . . . . . . . 5 . . . . 31 35 . 48 45 64 54 73 . 249 . . Explosions 771 | . . 10 29 6 . 26 89 . . . . . . 21 . 11 19 89 . . 83 288 . 100 Melee . | . . . . . . . . . . . . . . . . . . . . . . . . . Knockbacks 22 | . . . . . . . . . . . . . . . . . 14 . 1 3 . 4 . . Impact . | . . . . . . . . . . . . . . . . . . . . . . . . . Kinetic 22 | . . . . . . . . . . . . . . . . . 14 . 1 3 . 4 . . Secondary . | . . . . . . . . . . . . . . . . . . . . . . . . . Self-Inflicted Damage 650 | . . 64 . . . 16 5 . . . 38 . . . . 92 21 . . . . 230 . 184 Shots 19 | . . 2 . . . 1 1 . . . 3 . . . . 2 1 . . . . 5 . 4 Rammed 2 | . . . . . . . 2 . . . . . . . . . . . . . . . . . Targets Rammed 2 | . . . . . . . 2 . . . . . . . . . . . . . . . . . Kicked . | . . . . . . . . . . . . . . . . . . . . . . . . . Crushed . | . . . . . . . . . . . . . . . . . . . . . . . . . Highest Temperature 535 | 120 384 39 23 6 . 6 7 . . . 9 180 265 153 . 59 315 214 224 338 193 278 . 535 Average Temperature 93 | 63 125 12 14 3 . 3 3 . . . 5 59 98 40 . 31 108 80 60 142 109 121 . 125 Received Heat Transfer 2904 | . 60 . 54 45 . 135 649 20 . . 339 99 . 77 . 42 334 9 54 108 18 561 . 300 Effects 11 | . 1 . . . . . . . . . . . . . . . 2 . . . . 2 . 6 Shutdowns 1 | . . . . . . . . . . . . . . . . . . . . . . . . 1 Energy Bleed 3 | . 1 . . . . . . . . . . . . . . . . . . . . 2 . . Interference 5 | . . . . . . . . . . . . . . . . . 2 . . . . . . 3 Damage (minor) 1 | . . . . . . . . . . . . . . . . . . . . . . . . 1 Damage (core) 1 | . . . . . . . . . . . . . . . . . . . . . . . . 1 Siege Activations 2 | . . . . . . . . . . . . . . . . . . . . 1 . . . 1 Total Turns 68 | . . . . . . . . . . . . . . . . . . . . 44 . . . 24 Longest Duration 44 | . . . . . . . . . . . . . . . . . . . . 44 . . . 24 Robots Corrupted 16 | . . . . . . . 4 1 . . . 1 1 2 . 2 2 . . . . 1 . 2 Combat Hostiles 12 | . . . . . . . 3 . . . . . . 2 . 2 2 . . . . 1 . 2 Parts Fried 45 | . . . 2 1 . 1 18 1 . . . 4 1 3 . 1 6 . . 1 . 3 . 3 Impact Corruptions . | . . . . . . . . . . . . . . . . . . . . . . . . . Robots Melted . | . . . . . . . . . . . . . . . . . . . . . . . . . Combat Hostiles . | . . . . . . . . . . . . . . . . . . . . . . . . . Parts Melted 7 | 1 1 . . . . . . . . . . . . 1 . 1 1 . . . . 1 . 1 Heat Transferred 8331 | 174 754 25 100 50 . 50 300 . . . 50 . . 999 . 311 500 496 422 200 100 1959 . 1841 Parts Sabotaged . | . . . . . . . . . . . . . . . . . . . . . . . . . Parts Stolen . | . . . . . . . . . . . . . . . . . . . . . . . . . Parts Stripped . | . . . . . . . . . . . . . . . . . . . . . . . . . Power Chain Reactions 10 | . . . 1 1 . 1 3 . . . 1 . . . . 1 2 . . . . . . . Missiles Intercepted . | . . . . . . . . . . . . . . . . . . . . . . . . . Alert | -11 -10 -10 -9 -9 -9 -8 -8 -7 -7 -7 -6 -6 -6 -6 -6 -5 -5 -5 -5 -5 -4 -4 -4 -4 ------- Run | Scr Mat Min Mat Min Exi Min Mat Fac Low Dat Pro Fac Low Low Zio Pro Fac Upp Upp War Pro Fac Was Fac Peak Influence 1072 | 5 227 160 344 178 . 259 993 492 . . . 234 . . . . 615 . . . . 463 162 1072 Average Influence 265 | 1 138 133 247 170 . 86 329 401 . . . 99 . . . . 305 . . . . 189 158 537 Maximum Alert Level 3 | . 1 . 1 . . 1 3 2 . . . 1 . . . . 2 . . . . 2 . 3 Low Security (%) 51 | 100 60 100 28 100 . 96 49 . . . . 84 . . . . 30 . . . . 57 100 6 Level 1 20 | . 39 . 71 . . 3 11 28 . . . 15 . . . . 36 . . . . 25 . 13 Level 2 24 | . . . . . . . 22 71 . . . . . . . . 33 . . . . 16 . 71 Level 3 4 | . . . . . . . 16 . . . . . . . . . . . . . . . . 9 Level 4 . | . . . . . . . . . . . . . . . . . . . . . . . . . Level 5 . | . . . . . . . . . . . . . . . . . . . . . . . . . High Security . | . . . . . . . . . . . . . . . . . . . . . . . . . Max Security . | . . . . . . . . . . . . . . . . . . . . . . . . . Squads Dispatched 52 | . 2 1 2 . . . 10 3 . . 1 7 . . . . 8 . . . . 12 . 6 Investigation 18 | . . 1 2 . . . 6 . . . . 1 . . . . 3 . . . . 4 . 1 Extermination 13 | . . . . . . . . 2 . . . 4 . . . . 2 . . . . 2 . 3 Reinforcement 15 | . 2 . . . . . 2 1 . . . 2 . . . . 3 . . . . 3 . 2 Assault 2 | . . . . . . . 1 . . . 1 . . . . . . . . . . . . . Garrison 4 | . . . . . . . 1 . . . . . . . . . . . . . . 3 . . Intercept . | . . . . . . . . . . . . . . . . . . . . . . . . . Construction Impeded 4 | . . . . . . . 1 . . . . . . . . . 1 . . . . 1 . 1 Haulers Reinforced . | . . . . . . . . . . . . . . . . . . . . . . . . . Stealth | -11 -10 -10 -9 -9 -9 -8 -8 -7 -7 -7 -6 -6 -6 -6 -6 -5 -5 -5 -5 -5 -4 -4 -4 -4 --------- Run | Scr Mat Min Mat Min Exi Min Mat Fac Low Dat Pro Fac Low Low Zio Pro Fac Upp Upp War Pro Fac Was Fac Distress Signals 14 | . . . 2 . . . 4 . . . . 1 . . . . 3 . . . . 2 . 2 Communications Jammed 4 | . . . . . . . . . . . . . . . . . . . . . . . . 4 Distress Signals 4 | . . . . . . . . . . . . . . . . . . . . . . . . 4 Times Spotted 379 | . 10 7 19 2 . 9 69 5 . . 24 24 . 14 . 9 45 2 5 28 3 59 6 39 Peak Tracking Total 14 | . 3 3 7 2 . 3 9 3 . . 6 4 . 4 . 4 6 4 3 8 4 14 6 7 Tactical Retreats 34 | . . . 1 . . . 5 . . . 2 2 . 3 . . 2 1 . 4 . 12 . 2 Traps | -11 -10 -10 -9 -9 -9 -8 -8 -7 -7 -7 -6 -6 -6 -6 -6 -5 -5 -5 -5 -5 -4 -4 -4 -4 ------- Run | Scr Mat Min Mat Min Exi Min Mat Fac Low Dat Pro Fac Low Low Zio Pro Fac Upp Upp War Pro Fac Was Fac Traps Triggered 10 | . 1 . 1 . . . 2 . . . . 1 . . . . 3 . . . . 2 . . Indirectly . | . . . . . . . . . . . . . . . . . . . . . . . . . Trap Hack Attempts 17 | . . . . . . . . . . . . . . . . . 17 . . . . . . . Triggered . | . . . . . . . . . . . . . . . . . . . . . . . . . Disarmed 6 | . . . . . . . . . . . . . . . . . . . . . . 6 . . Reprogrammed 15 | . 1 . . . . . 6 . . . . . . . . . 8 . . . . . . . Reused 10 | . . . . . . . 3 . . . . . . 2 . 3 1 . . . . 1 . . Traps Extracted 3 | . . . . . . . . . . . . . . . . . 3 . . . . . . . Installed 6 | . . . . . . . . . . . . . . 2 . 3 . . . . . 1 . . Triggered 19 | . . . . . . . 3 . . . . . . 2 . 3 2 . . 8 . 1 . . Machines | -11 -10 -10 -9 -9 -9 -8 -8 -7 -7 -7 -6 -6 -6 -6 -6 -5 -5 -5 -5 -5 -4 -4 -4 -4 ---------- Run | Scr Mat Min Mat Min Exi Min Mat Fac Low Dat Pro Fac Low Low Zio Pro Fac Upp Upp War Pro Fac Was Fac Machines Disabled 37 | . 1 . . . . 4 . . . . . 2 1 . . . 11 . . . . 6 . 12 Max in Single Turn 6 | . 1 . . . . 4 . . . . . 1 1 . . . 5 . . . . 3 . 6 Garrison Access 1 | . . . . . . . . . . . . . . . . . 1 . . . . . . . Machines Sabotaged . | . . . . . . . . . . . . . . . . . . . . . . . . . Garrisons Compromised . | . . . . . . . . . . . . . . . . . . . . . . . . . Overloaded Fab Kills . | . . . . . . . . . . . . . . . . . . . . . . . . . Fab Network Shutdowns . | . . . . . . . . . . . . . . . . . . . . . . . . . Hacking | -11 -10 -10 -9 -9 -9 -8 -8 -7 -7 -7 -6 -6 -6 -6 -6 -5 -5 -5 -5 -5 -4 -4 -4 -4 --------- Run | Scr Mat Min Mat Min Exi Min Mat Fac Low Dat Pro Fac Low Low Zio Pro Fac Upp Upp War Pro Fac Was Fac Machines Accessed 78 | . 5 1 3 . 1 . 16 3 1 4 . 9 1 . 1 . 14 . 1 1 . 10 . 7 Terminals 37 | . 3 . 2 . . . 11 1 . . . 4 . . . . 8 . 1 . . 4 . 3 Fabricators 6 | . . . . . . . . 1 . . . 1 . . . . 2 . . . . 1 . 1 Repair Stations 11 | . 1 . . . . . 2 1 . . . 2 . . . . 2 . . . . 2 . 1 Recycling Units 7 | . 1 . . . . . 1 . . . . . . . . . 1 . . . . 2 . 2 Scanalyzers 4 | . . . 1 . . . 1 . . . . 2 . . . . . . . . . . . . Garrison Access 3 | . . . . . . . 1 . . . . . . . . . 1 . . . . 1 . . Total Hacks 241 | . 16 1 9 . 23 . 48 8 1 27 . 18 1 . 1 . 38 . 5 1 . 25 . 19 Successful 163 | . 7 1 4 . 23 . 30 5 1 27 . 12 1 . 1 . 18 . 4 1 . 15 . 13 Failed 77 | . 9 . 5 . . . 17 3 . . . 6 . . . . 20 . 1 . . 10 . 6 Catastrophic 10 | . 1 . 1 . . . 1 . . . . 2 . . . . 2 . . . . 2 . 1 Database Lockouts 1 | . . . . . . . 1 . . . . . . . . . . . . . . . . . Manual 69 | . 5 . 5 . . . 19 3 . . . 1 . . . . 13 . 4 1 . 9 . 9 Terminals 98 | . 8 . 5 . . . 29 2 . . . 8 . . . . 22 . 5 . . 11 . 8 Fabricators 23 | . . . . . . . . 4 . . . 3 . . . . 7 . . . . 3 . 6 Repair Stations 34 | . 5 . . . . . 11 2 . . . 3 . . . . 6 . . . . 5 . 2 Recycling Units 13 | . 3 . . . . . 1 . . . . . . . . . 2 . . . . 4 . 3 Scanalyzers 12 | . . . 4 . . . 4 . . . . 4 . . . . . . . . . . . . Garrison Access 6 | . . . . . . . 3 . . . . . . . . . 1 . . . . 2 . . Terminal Hacks 87 | . 2 1 . . 23 . 13 . 1 27 . 4 1 . 1 . 3 . 3 1 . 5 . 2 Record 35 | . . . . . 23 . . . . 11 . . . . . . . . 1 . . . . . Part Schematic 14 | . . . . . . . 1 . . 6 . 1 . . 1 . . . 2 . . 3 . . Robot Schematic 7 | . . . . . . . . . . 7 . . . . . . . . . . . . . . Robot Analysis 2 | . 1 . . . . . 1 . . . . . . . . . . . . . . . . . Prototype ID Bank 5 | . . . . . . . 1 . . 3 . 1 . . . . . . . . . . . . Open Door 4 | . . 1 . . . . . . 1 . . . 1 . . . . . . 1 . . . . Level Access Points 1 | . . . . . . . . . . . . . . . . . . . . . . . . 1 Branch Access Points 2 | . . . . . . . 1 . . . . . . . . . . . . . . . . 1 Terminal Index 1 | . . . . . . . 1 . . . . . . . . . . . . . . . . . Unreport Threat 5 | . . . . . . . 2 . . . . 2 . . . . 1 . . . . . . . Locate Traps 1 | . . . . . . . . . . . . . . . . . 1 . . . . . . . Disarm Traps 1 | . . . . . . . . . . . . . . . . . . . . . . 1 . . Reprogram Traps 3 | . 1 . . . . . 1 . . . . . . . . . 1 . . . . . . . Dispatch Records 1 | . . . . . . . 1 . . . . . . . . . . . . . . . . . Recall Investigation 3 | . . . . . . . 2 . . . . . . . . . . . . . . 1 . . Hauler Manifests 1 | . . . . . . . 1 . . . . . . . . . . . . . . . . . Zone Layout 1 | . . . . . . . 1 . . . . . . . . . . . . . . . . . Fabricator Hacks 14 | . . . . . . . . 2 . . . 2 . . . . 4 . . . . 2 . 4 Load Schematic 7 | . . . . . . . . 1 . . . 1 . . . . 2 . . . . 1 . 2 Build 7 | . . . . . . . . 1 . . . 1 . . . . 2 . . . . 1 . 2 Repair Station Hacks 26 | . 4 . . . . . 9 2 . . . 2 . . . . 4 . . . . 3 . 2 Scan Component 15 | . 2 . . . . . 5 1 . . . 1 . . . . 3 . . . . 2 . 1 Repair 11 | . 2 . . . . . 4 1 . . . 1 . . . . 1 . . . . 1 . 1 Recycling Unit Hacks 7 | . . . . . . . 1 . . . . . . . . . 1 . . . . 3 . 2 Retrieve Components 7 | . . . . . . . 1 . . . . . . . . . 1 . . . . 3 . 2 Scanalyzer 11 | . . . 4 . . . 4 . . . . 3 . . . . . . . . . . . . Insert Component 6 | . . . 2 . . . 2 . . . . 2 . . . . . . . . . . . . Analyze 5 | . . . 2 . . . 2 . . . . 1 . . . . . . . . . . . . Garrison Access Hacks 1 | . . . . . . . . . . . . . . . . . 1 . . . . . . . Seal Access 1 | . . . . . . . . . . . . . . . . . 1 . . . . . . . Unauthorized Hacks 17 | . 1 . . . . . 3 1 . . . 1 . . . . 5 . 1 . . 2 . 3 Terminals 14 | . 1 . . . . . 2 . . . . 1 . . . . 5 . 1 . . 2 . 2 Track 1 | . . . . . . . . . . . . . . . . . . . 1 . . . . . Assimilate 2 | . . . . . . . 1 . . . . . . . . . 1 . . . . . . . Botnet 8 | . 1 . . . . . 1 . . . . 1 . . . . 2 . . . . 2 . 1 Disrupt 2 | . . . . . . . . . . . . . . . . . 1 . . . . . . 1 Operators 1 | . . . . . . . . . . . . . . . . . 1 . . . . . . . Fabricators 2 | . . . . . . . . 1 . . . . . . . . . . . . . . . 1 Report 1 | . . . . . . . . 1 . . . . . . . . . . . . . . . . Siphon 1 | . . . . . . . . . . . . . . . . . . . . . . . . 1 Repair Stations . | . . . . . . . . . . . . . . . . . . . . . . . . . Recycling Units . | . . . . . . . . . . . . . . . . . . . . . . . . . Scanalyzers . | . . . . . . . . . . . . . . . . . . . . . . . . . Garrison Access 1 | . . . . . . . 1 . . . . . . . . . . . . . . . . . Reprogram 1 | . . . . . . . 1 . . . . . . . . . . . . . . . . . Data Cores Recovered . | . . . . . . . . . . . . . . . . . . . . . . . . . Used . | . . . . . . . . . . . . . . . . . . . . . . . . . Hacking Detections 62 | . 5 . 3 . . . 15 3 . . . 9 . . . . 12 . 1 . . 9 . 5 Full Trace Events 13 | . 1 . 2 . . . 3 . . . . . . . . . 2 . . . . 4 . 1 Feedback Events 2 | . . . . . . . 1 . . . . . . . . . 1 . . . . . . . Corruption 2 | . . . . . . . 1 . . . . . . . . . 1 . . . . . . . Feedback Blocked . | . . . . . . . . . . . . . . . . . . . . . . . . . Robot Schematics Acquired 7 | . . . . . . . . . . 7 . . . . . . . . . . . . . . Robots Built 4 | . . . . . . . . . . . . . . . . . 4 . . . . . . . Matter 636 | . . . . . . . . . . . . . . . . . 636 . . . . . . . Time 253 | . . . . . . . . . . . . . . . . . 253 . . . . . . . Total Robot Build Rating 24 | . . . . . . . . . . . . . . . . . 24 . . . . . . . Part Schematics Acquired 18 | . . . 2 . . . 3 . . 6 . 2 . . 1 . . . 2 . . 2 . . Parts Built 7 | . . . . . . . . 2 . . . 1 . . . . . . . . . 1 . 3 Matter 1094 | . . . . . . . . 124 . . . 285 . . . . . . . . . 285 . 400 Time 347 | . . . . . . . . 62 . . . 76 . . . . . . . . . 76 . 133 Total Part Build Rating 40 | . . . . . . . . 4 . . . 5 . . . . . . . . . 5 . 26 Parts Repaired 11 | . 2 . . . . . 4 1 . . . 1 . . . . 1 . . . . 1 . 1 Time 297 | . 52 . . . . . 110 22 . . . 32 . . . . 22 . . . . 28 . 31 Parts Recycled . | . . . . . . . . . . . . . . . . . . . . . . . . . Recycled Matter . | . . . . . . . . . . . . . . . . . . . . . . . . . Retrieved Matter . | . . . . . . . . . . . . . . . . . . . . . . . . . Retrieved Components 45 | . . . . . . . 9 . . . . . . . . . 9 . . . . 20 . 7 Parts Scanalyzed 6 | . . . 2 . . . 2 . . . . 2 . . . . . . . . . . . . Part Schematics Acquired 5 | . . . 2 . . . 2 . . . . 1 . . . . . . . . . . . . Parts Damaged . | . . . . . . . . . . . . . . . . . . . . . . . . . Bothacking | -11 -10 -10 -9 -9 -9 -8 -8 -7 -7 -7 -6 -6 -6 -6 -6 -5 -5 -5 -5 -5 -4 -4 -4 -4 ------------ Run | Scr Mat Min Mat Min Exi Min Mat Fac Low Dat Pro Fac Low Low Zio Pro Fac Upp Upp War Pro Fac Was Fac Used RIF Installer . | . . . . . . . . . . . . . . . . . . . . . . . . . Robots Hacked 2 | . . . . . . . . . . . 1 . . . . . . . . . . 1 . . Non-combat 1 | . . . . . . . . . . . . . . . . . . . . . . 1 . . Combat 1 | . . . . . . . . . . . 1 . . . . . . . . . . . . . Robot Hacks Applied 2 | . . . . . . . . . . . 1 . . . . . . . . . . 1 . . parse_system 1 | . . . . . . . . . . . 1 . . . . . . . . . . . . . find_chute 1 | . . . . . . . . . . . . . . . . . . . . . . 1 . . Relay Couplers Released 2 | . . . . . . . . . . . . . . . . . 2 . . . . . . . Machine Destruction 2 | . . . . . . . . . . . . . . . . . 2 . . . . . . . Robots Rewired 2 | . . . . . . . . . . . 2 . . . . . . . . . . . . . Allies Hacked 2 | . . . . . . . . . . . . . . . . . 2 . . . . . . . Hacks Repelled . | . . . . . . . . . . . . . . . . . . . . . . . . . Allies | -11 -10 -10 -9 -9 -9 -8 -8 -7 -7 -7 -6 -6 -6 -6 -6 -5 -5 -5 -5 -5 -4 -4 -4 -4 -------- Run | Scr Mat Min Mat Min Exi Min Mat Fac Low Dat Pro Fac Low Low Zio Pro Fac Upp Upp War Pro Fac Was Fac Total Allies 13 | . . . . . . . 3 . . . 3 . . . . . 7 . . . . . . . Largest Group 4 | . . . . . . . 2 . . . 2 . . . . . 4 1 1 1 . . . . Highest-Rated Group 135 | . . . . . . . 32 . . . 123 . . . . . 135 54 54 54 . . . . Highest-Rated Ally 94 | . . . . . . . 16 . . . 94 . . . . . 54 54 54 54 . . . . Total Orders 7 | . . . . . . . 2 . . . . . . . . . 5 . . . . . . . STAY 1 | . . . . . . . . . . . . . . . . . 1 . . . . . . . GOTO 3 | . . . . . . . 1 . . . . . . . . . 2 . . . . . . . FOLLOW 3 | . . . . . . . 1 . . . . . . . . . 2 . . . . . . . Ally Attacks 137 | . . . . . . . 34 . . . 49 . . . . . 35 5 8 6 . . . . Total Damage 3282 | . . . . . . . 292 . . . 1059 . . . . . 1177 191 320 243 . . . . Kills 32 | . . . . . . . 4 . . . 9 . . . . . 12 1 4 2 . . . . Allies Corrupted . | . . . . . . . . . . . . . . . . . . . . . . . . . Allies Melted 2 | . . . . . . . . . . . . . . . . . . . . 2 . . . . Intel | -11 -10 -10 -9 -9 -9 -8 -8 -7 -7 -7 -6 -6 -6 -6 -6 -5 -5 -5 -5 -5 -4 -4 -4 -4 ------- Run | Scr Mat Min Mat Min Exi Min Mat Fac Low Dat Pro Fac Low Low Zio Pro Fac Upp Upp War Pro Fac Was Fac Robot Analysis Total 2 | . 1 . . . . . 1 . . . . . . . . . . . . . . . . . Derelict Logs Recovered 14 | . . 1 . . . . . . 1 . 1 . 2 3 2 . . 2 1 . 1 . . . Drone Launches . | . . . . . . . . . . . . . . . . . . . . . . . . . Drone Recoveries . | . . . . . . . . . . . . . . . . . . . . . . . . . Decoded 0b10 Intel 1 | . . . . . . . . . . . . . . . . . 1 . . . . . . . Items 1 | . . . . . . . . . . . . . . . . . 1 . . . . . . . Exploration | -11 -10 -10 -9 -9 -9 -8 -8 -7 -7 -7 -6 -6 -6 -6 -6 -5 -5 -5 -5 -5 -4 -4 -4 -4 ------------- Run | Scr Mat Min Mat Min Exi Min Mat Fac Low Dat Pro Fac Low Low Zio Pro Fac Upp Upp War Pro Fac Was Fac Turns Passed 22480 | 62 435 337 335 168 308 835 2014 561 1084 101 720 1791 1521 1261 2624 478 2005 782 413 930 502 1256 375 1582 Spaces Moved 12472 | 47 256 256 187 105 220 500 918 232 881 83 402 898 946 787 760 309 985 549 295 602 338 867 431 618 Core 43 | 2 . . . . . . . . . . . . . . . . . . . . . 41 . . Treads 914 | . . . . . . 1 1 142 . . . . . . . . 2 . . . . 57 93 618 Legs . | . . . . . . . . . . . . . . . . . . . . . . . . . Wheels 10788 | 45 256 256 187 105 220 499 917 90 881 83 402 898 946 787 760 309 983 549 295 602 338 380 . . Hover . | . . . . . . . . . . . . . . . . . . . . . . . . . Flight 727 | . . . . . . . . . . . . . . . . . . . . . . 389 338 . Fastest Speed 31 | 50 80 110 120 140 140 140 120 120 120 120 120 103 125 125 125 130 130 130 130 130 140 31 34 155 Average Speed 131 | 78 93 119 141 140 140 146 158 170 120 120 128 141 125 132 131 130 140 130 130 130 140 103 61 157 Slowest Speed 1150 | 80 120 120 150 140 140 220 200 200 130 130 170 180 135 135 135 130 183 130 130 140 140 1150 160 160 Overloaded Moves . | . . . . . . . . . . . . . . . . . . . . . . . . . Propulsion Burnouts . | . . . . . . . . . . . . . . . . . . . . . . . . . Robots Hopped 5 | . . . . . . . . . . . . . . . . . . . . . . 5 . . Cave-ins Triggered . | . . . . . . . . . . . . . . . . . . . . . . . . . Exploration Rate (%) 55 | 4 61 56 20 30 55 80 80 10 86 74 59 24 98 75 82 49 32 79 61 80 54 21 100 16 Regions Visited 24 Branch Regions 15 Pre-discovered Areas 5 | . . . . . 1 . . . . 1 . . . . 2 . . . . . 1 . . . Known Exits Taken 16 | . . . 1 . . . 1 1 1 1 1 1 1 1 1 1 1 1 1 1 1 . . . Unknown Exits Taken 6 | 1 1 1 . 1 1 1 . . . . . . . . . . . . . . . . . . Scrap Searched 21 | . . 2 . 1 . 1 . . 1 . 1 . 4 4 3 . . . 2 . 2 . . . Spaces Dug 41 | . . 9 . . . . . 2 . . 10 2 . 2 . . 8 4 . 3 . . . 1 Terrain Destroyed 681 | . 7 29 22 . . 16 22 3 . . 13 2 . 32 . 25 36 57 4 14 76 60 3 260 Melee 24 | . . . . . . . . 2 . . 10 2 . 2 . . 8 . . . . . . . Projectile 97 | . . . . . . . 6 1 . . 1 . . 5 . 1 7 9 4 14 6 6 3 34 AOE 560 | . 7 29 22 . . 16 16 . . . 2 . . 25 . 24 21 48 . . 70 54 . 226 Actions | -11 -10 -10 -9 -9 -9 -8 -8 -7 -7 -7 -6 -6 -6 -6 -6 -5 -5 -5 -5 -5 -4 -4 -4 -4 --------- Run | Scr Mat Min Mat Min Exi Min Mat Fac Low Dat Pro Fac Low Low Zio Pro Fac Upp Upp War Pro Fac Was Fac Total 17432 | 60 420 279 229 112 220 569 1298 368 897 84 510 1313 1266 947 2385 360 1438 587 310 695 351 1116 512 1106 Wait 3582 | . 130 1 7 . . 40 204 106 . 1 21 270 301 100 1591 26 255 12 . 23 2 79 48 365 Move 12440 | 46 255 255 186 104 219 499 917 231 880 82 401 897 945 786 759 308 984 548 294 601 337 858 430 618 Hop 4 | . . . . . . . . . . . . . . . . . . . . . . 4 . . Pick Up 163 | 4 7 5 13 . 1 3 18 5 4 . 4 23 3 9 12 1 12 1 . 8 . 11 1 18 Fast Attach 112 | 6 3 2 . . . . 10 1 . . 3 10 1 . 1 1 14 2 2 6 . 33 7 10 Attach 60 | . . 1 2 1 . 2 7 2 . . 4 6 . . 1 . 7 1 1 2 . 16 2 5 Detach 35 | . . 1 . . . . 5 . . . 1 1 . . 1 . 5 . 1 2 . 12 3 3 Swap 187 | . 5 5 3 . . 4 20 10 2 1 17 30 5 12 8 7 24 4 2 4 3 9 1 11 Drop 171 | . 3 4 3 . . 3 21 1 5 . 6 22 3 10 12 3 16 1 3 15 . 22 4 14 Fire 563 | 4 17 5 15 7 . 18 94 9 6 . 33 27 8 26 . 11 68 18 7 34 9 69 16 62 Melee 80 | . . . . . . . . 3 . . 19 27 . 2 . . 27 . . . . 2 . . Ram . | . . . . . . . . . . . . . . . . . . . . . . . . . Kick . | . . . . . . . . . . . . . . . . . . . . . . . . . Crush 2 | . . . . . . . 2 . . . . . . . . . . . . . . . . . Escape Stasis 9 | . . . . . . . . . . . . . . . . . 9 . . . . . . . Rewire 1 | . . . . . . . . . . . 1 . . . . . . . . . . . . . Trap 23 | . . . . . . . . . . . . . . 2 . 3 17 . . . . 1 . . Miscellaneous . | . . . . . . . . . . . . . . . . . . . . . . . . . Route ------- -11/Scrapyard -10/Materials (discovered 2 exits: *Mat / *Min) -10/Mines -9/Materials -9/Mines (discovered 3 exits: *Mat x2 / *Exi) -9/Exiles -8/Mines (discovered 2 exits: *Mat x2) -8/Materials (discovered 3 exits: *Fac x3) -7/Factory -7/Lower Caves -7/Data Miner -6/Proximity Caves -6/Factory -6/Lower Caves -6/Lower Caves -6/Zion -5/Proximity Caves -5/Factory (discovered 3 exits: *Fac x2 / *Upp) -5/Upper Caves -5/Upper Caves -5/Warlord -4/Proximity Caves -4/Factory (discovered 2 exits: *Upp / *Ext) -4/Waste -4/Factory (discovered 8 exits: Res x4 / Upp x2 / *Ext x2) History --------- Turn | Location | Event 28 | -11/Scrapyard | Discovered new exit (range 15) 63 | -11/Scrapyard | Entered Materials 207 | -10/Materials | Discovered new exit (range 15) 308 | -10/Materials | Build established: Mutant 398 | -10/Materials | Discovered new exit (range 7) 450 | -10/Materials | Repaired Lgt. Treads 477 | -10/Materials | Repaired Lgt. Armor Plating 498 | -10/Materials | Entered Mines 545 | -10/Mines | Met a Derelict shopkeep closing up shop 715 | -10/Mines | Discovered new exit (range 13) 805 | -10/Mines | Learned location of 1 exit from Materials 835 | -10/Mines | Entered Materials 835 | -9/Materials | Evolved 2 slots: Utility x2 836 | -9/Materials | Identified exit to Mines 1139 | -9/Materials | Build established: Hauler-Mutant 1170 | -9/Materials | Entered Mines 1216 | -9/Mines | Discovered new exit (range 9) 1292 | -9/Mines | Discovered new exit (range 7) 1311 | -9/Mines | Deemed a non-threat by the Exiles lab entrance 1332 | -9/Mines | Discovered new exit (range 5) 1338 | -9/Mines | Entered Exiles 1373 | -9/Exiles | Met 8R-AWN 1404 | -9/Exiles | Met EX-HEX 1454 | -9/Exiles | Met EX-DEC 1521 | -9/Exiles | Learned location of Zion (-6) 1608 | -9/Exiles | Discovered new exit (range 14) 1646 | -9/Exiles | Entered Mines 1877 | -8/Mines | Discovered new exit (range 8) 2079 | -8/Mines | Discovered new exit (range 16) 2481 | -8/Mines | Entered Materials 2481 | -8/Materials | Evolved 2 slots: Propulsion x1, Utility x1 2765 | -8/Materials | Discovered new exit (range 6) 2942 | -8/Materials | Repaired Lgt. Treads 2969 | -8/Materials | Repaired Lgt. Treads 3027 | -8/Materials | Repaired Imp. Ion Engine 3054 | -8/Materials | Repaired Com. Wheel 3366 | -8/Materials | Garrison activated, responded to threat 3792 | -8/Materials | Discovered new exit (range 3) 3793 | -8/Materials | Identified exit to Factory 3914 | -8/Materials | Central database locked down 4199 | -8/Materials | Destroyed 7 combat bots 4214 | -8/Materials | Lost 3 parts (1p1u1w) 4289 | -8/Materials | Destroyed 7 combat bots 4359 | -8/Materials | Discovered exit to Factory (range 10) 4481 | -8/Materials | First assault squad dispatched 4495 | -8/Materials | Entered Factory 4495 | -7/Factory | Evolved 2 slots: Utility x2 4657 | -7/Factory | Repaired Med. Reactive Plating 4819 | -7/Factory | Fabricated Trap Extractor (x2) 4999 | -7/Factory | Discovered new exit (range 20) 5053 | -7/Factory | Identified exit to Lower Caves 5056 | -7/Factory | Entered Lower Caves 5233 | -7/Lower Caves | Encountered a Warlord checkpoint 5327 | -7/Lower Caves | A Derelict revealed a hidden shortcut to meet someone special 5330 | -7/Lower Caves | Identified exit to Data Miner 5412 | -7/Lower Caves | Spotted B-75 Beast 5444 | -7/Lower Caves | Build established: Scavenger-Skirmisher 5916 | -7/Lower Caves | Learned location of 1 exit from Factory 6140 | -7/Lower Caves | Entered Data Miner 6140 | -7/Data Miner | Discovered new exit (range 6) 6156 | -7/Data Miner | Met Data Miner 6187 | -7/Data Miner | Learned location of Section 7 (-2) 6187 | -7/Data Miner | Acquired the access code to Warlord's prototype stash 6210 | -7/Data Miner | Received God Mode back door access code from Data Miner 6238 | -7/Data Miner | Identified exit to Proximity Caves 6241 | -7/Data Miner | Entered Proximity Caves 6327 | -6/Proximity Caves | Escorted by Enhanced Grunt 6342 | -6/Proximity Caves | Attracted the attention of an 0b10 outpost 6559 | -6/Proximity Caves | Found Prototype Device 6559 | -6/Proximity Caves | Identified Exp. Thermal Shield 6628 | -6/Proximity Caves | Spotted B-75 Beast 6839 | -6/Proximity Caves | Learned Factory stockpile data 6935 | -6/Proximity Caves | Discovered new exit (range 9) 6946 | -6/Proximity Caves | Identified exit to Factory 6961 | -6/Proximity Caves | Entered Factory 6961 | -6/Factory | Evolved 2 slots: Power x1, Propulsion x1 6962 | -6/Factory | Identified exit to Lower Caves 7195 | -6/Factory | Repaired Arm. Wheel 7899 | -6/Factory | Incoming investigation squad redirected 7962 | -6/Factory | Fabricated Exp. Sensor Array (x1) 8242 | -6/Factory | Lost 6 parts (1p2n2u1w) 8533 | -6/Factory | System corruption reached 10% 8589 | -6/Factory | Build established: Hauler-Skirmisher 8752 | -6/Factory | Entered Lower Caves 8946 | -6/Lower Caves | Build established: Hauler-Mutant 9047 | -6/Lower Caves | Identified exit to Lower Caves 9090 | -6/Lower Caves | Encountered a Warlord checkpoint 9451 | -6/Lower Caves | Learned location of 1 exit from Factory 9804 | -6/Lower Caves | Build established: Hauler-Skirmisher 10273 | -6/Lower Caves | Entered another Lower Caves area 10426 | -6/Lower Caves | Encountered a Warlord checkpoint 10954 | -6/Lower Caves | Learned Factory emergency access door positions 11092 | -6/Lower Caves | Build established: Trapper-Skirmisher 11345 | -6/Lower Caves | Learned 8 Factory zone layouts 11396 | -6/Lower Caves | Discovered new exit (range 10) 11428 | -6/Lower Caves | Learned Factory stockpile data 11533 | -6/Lower Caves | Identified exit to Zion 11534 | -6/Lower Caves | Entered Zion 11623 | -6/Zion | Found Prototype Processor 11625 | -6/Zion | Found Prototype Processor 11627 | -6/Zion | Found Prototype Hackware 11644 | -6/Zion | Identified Exp. Terrain Scan Processor 11680 | -6/Zion | Identified Exp. Core Analyzer 11733 | -6/Zion | Identified Exp. Hacking Suite 11747 | -6/Zion | Found Prototype Processor 11753 | -6/Zion | Found Prototype Processor 11791 | -6/Zion | Identified Exp. Signal Interpreter 11799 | -6/Zion | Identified Exp. Melee Analysis Suite 11817 | -6/Zion | Found Prototype Processor 11846 | -6/Zion | Identified Spectral Analyzer 11959 | -6/Zion | Learned Factory stockpile data 12130 | -6/Zion | Learned location of Quarantine (-2) 12231 | -6/Zion | Learned Factory terminal intel 12304 | -6/Zion | Build established: Hauler-Skirmisher 12579 | -6/Zion | Discovered new exit (range 7) 12587 | -6/Zion | Identified exit to Proximity Caves 14158 | -6/Zion | Entered Proximity Caves 14569 | -5/Proximity Caves | Discovered new exit (range 10) 14579 | -5/Proximity Caves | Identified exit to Factory 14636 | -5/Proximity Caves | Entered Factory 14636 | -5/Factory | Evolved 2 slots: Propulsion x1, Utility x1 14637 | -5/Factory | Identified exit to Upper Caves 14638 | -5/Factory | Identified exit to Factory 14641 | -5/Factory | Loaded intel: 20 terminal locations 15425 | -5/Factory | Build established: Hauler-Mutant 15795 | -5/Factory | Fabricated P-70 Sage? 15883 | -5/Factory | Sage 6a assimilated hostile W-25 Informer 15961 | -5/Factory | Repaired Imp. Cooling System 15970 | -5/Factory | Incoming investigation squad redirected 15988 | -5/Factory | Incoming investigation squad redirected 16261 | -5/Factory | Discovered exit to Factory (range 12) 16389 | -5/Factory | Found Prototype Launcher 16389 | -5/Factory | Identified Mni. Smartbomb Launcher 16617 | -5/Factory | Fabricated P-70 Sage? 16641 | -5/Factory | Entered Upper Caves 16641 | -5/Upper Caves | Accompanied by 1 ally 16683 | -5/Upper Caves | Learned Factory emergency access door positions 16848 | -5/Upper Caves | Learned 4 Factory zone layouts 16956 | -5/Upper Caves | Found Alien Artifact 16956 | -5/Upper Caves | Identified Core Expander 16956 | -5/Upper Caves | Installed Core Expander, added new Weapon slot 17177 | -5/Upper Caves | Discovered new exit (range 10) 17419 | -5/Upper Caves | Identified exit to Upper Caves 17423 | -5/Upper Caves | Entered another Upper Caves area 17423 | -5/Upper Caves | Accompanied by 1 ally 17445 | -5/Upper Caves | Learned Factory emergency access door positions 17720 | -5/Upper Caves | Discovered new exit (range 22) 17743 | -5/Upper Caves | Build established: Scavenger-Skirmisher 17835 | -5/Upper Caves | Identified exit to Warlord 17836 | -5/Upper Caves | Entered Warlord 17836 | -5/Warlord | Accompanied by 1 ally 17858 | -5/Warlord | System corruption reached 10% 17879 | -5/Warlord | System corruption cleaned by Quarantine Array 18314 | -5/Warlord | Warlord's base attacked by MAIN.C 18324 | -5/Warlord | Met Warlord 18337 | -5/Warlord | Opened Warlord's prototype stash 18342 | -5/Warlord | Found Prototype Reactor 18353 | -5/Warlord | Found Prototype Hackware 18353 | -5/Warlord | Identified System Mapper 18507 | -5/Warlord | Found Prototype Launcher 18510 | -5/Warlord | Found Prototype Energy Cannon 18510 | -5/Warlord | Identified Vortex Driver 18643 | -5/Warlord | Warlord forces counterattacked 18648 | -5/Warlord | Destroyed 7 combat bots 18652 | -5/Warlord | Spotted Executioner 18663 | -5/Warlord | Destroyed Executioner 18679 | -5/Warlord | Found Prototype Ballistic Cannon 18679 | -5/Warlord | Identified Hvy. Autocannon 18685 | -5/Warlord | Found Hvy. Autocannon 18695 | -5/Warlord | Found Hvy. Autocannon 18699 | -5/Warlord | Spotted Striker 18748 | -5/Warlord | Spotted Executioner 18749 | -5/Warlord | Discovered new exit (range 14) 18764 | -5/Warlord | Identified exit to Proximity Caves 18766 | -5/Warlord | Entered Proximity Caves 19017 | -4/Proximity Caves | Learned location of Testing (-3) 19207 | -4/Proximity Caves | Discovered exit to Factory (range 7) 19268 | -4/Proximity Caves | Entered Factory 19268 | -4/Factory | Evolved 2 slots: Utility x2 19560 | -4/Factory | Discovered new exit (range 14) 19594 | -4/Factory | Fabricated Exp. Signal Interpreter (x1) 19769 | -4/Factory | Identified exit to Upper Caves 19837 | -4/Factory | Repaired Rnf. Fission Core 20036 | -4/Factory | Lost 3 parts (1n2w) 20207 | -4/Factory | Lost 11 parts (1p2n5u3w) 20220 | -4/Factory | Identified Vortex Chain Reactor 20291 | -4/Factory | Core integrity fell below 50% 20323 | -4/Factory | Lost 4 parts (1p1n2w) 20440 | -4/Factory | Spotted B-86 Titan 20504 | -4/Factory | Incoming investigation squad redirected 20511 | -4/Factory | Discovered new exit (range 10) 20524 | -4/Factory | Manually triggered Chute Trap 20524 | -4/Factory | Sucked down chute 20524 | -4/Factory | Entered Waste 20529 | -4/Waste | Spotted C-40 Crusher 20530 | -4/Waste | Spotted C-40 Crusher 20539 | -4/Waste | Found Prototype Processor 20539 | -4/Waste | Identified Exp. Armor Integrity Analyzer 20551 | -4/Waste | Spotted C-40 Crusher 20552 | -4/Waste | Spotted C-40 Crusher 20554 | -4/Waste | Lost 4 parts (1p1n1u1w) 20630 | -4/Waste | Spotted C-40 Crusher 20641 | -4/Waste | Spotted C-40 Crusher 20644 | -4/Waste | Destroyed C-40 Crusher 20661 | -4/Waste | Destroyed C-40 Crusher 20669 | -4/Waste | Destroyed C-40 Crusher 20675 | -4/Waste | Destroyed C-40 Crusher 20678 | -4/Waste | Destroyed C-40 Crusher 20681 | -4/Waste | Destroyed C-40 Crusher 20692 | -4/Waste | Discovered new exit (range 14) 20898 | -4/Waste | Identified exit to Factory 20899 | -4/Waste | Entered Factory 21000 | -4/Factory | Identified Vortex Catalyst Activator 21035 | -4/Factory | Destroyed 7 combat bots 21088 | -4/Factory | Repaired Railgun 21364 | -4/Factory | Fabricated Gamma Bomb Array? 21459 | -4/Factory | Fabricated Adv. Heavy Siege Treads? 21576 | -4/Factory | Build established: Hacker-Skirmisher 22090 | -4/Factory | Discovered new exit (range 19) 22105 | -4/Factory | Identified exit to Extension 22390 | -4/Factory | Core integrity fell below 20% 22439 | -4/Factory | Identified exit to Research 22482 | -4/Factory | Core destroyed Last Messages --------------- 22467_ P-70 Sage suffers critical hit. 22467_ Destroyed Unknown Energy Gun. 22467_ U-05 Engineer builds a Wall. 22468_ U-05 Engineer lays Concrete. 22468_ U-05 Engineer builds a Wall. 22469_ U-05 Engineer lays Concrete. 22470_ Power failure, Vortex Chain Reactor shutdown. 22470_ Slug penetrates Wall. 22476_ Slug penetrates P-70 Sage. 22476_ Destroyed Hpw. Shock Rifle. 22476_ Terminal disabled. 22479_ Slug penetrates Wall. 22479_ P-70 Sage destroyed. 22480_ Overheating: Railgun damaged (-6). 22481_ Overheating: System interference. 22481_ Adv. Focal Shield temporarily disabled. 22481_ Railgun temporarily disabled. 22481_ Adv. Focal Shield temporarily disabled. 22481_ U-05 Engineer builds a Wall. 22482_ Overheating: Core damaged (-218). Map ----- +----------------------------------------------------+ | ?????????????????????????????????????????????????? | | ?????????????????????????????+???????????????????? | | ?????????????????????????????????????????????????? | | ?????????????????????????????????????????????????? | | ?????????????????????????????????????????????????? | | ?????????????????????????????????????????????????? | | ?????????????????????????????????????????????????? | | ?????????????????????????????????????????????????? | | ?????????????????????????????????????????????????? | | ?????????????????????????????????????????????????? | | ?????????????????????????????????????????????????? | | ?????????????????????????????????????????????????? | | ?????????????????????????????????????????????????? | | ?????????????????????????????????????????????????? | | ?????????????????????????????????????????????????? | | ?????????????????????????????????????????????????? | | ?????????????????????????????????????????????????? | | ???????????????????????#######???????????????????? | | ???????????????????????# #???????????????????? | | ???????????????????????# ##??????????????????? | | ?###########??????????? ????????????????